lending/lending_fUSD_20260317
["ID","MTS","AMOUNT","RATE_DAILY","PERIOD"]
[408495586,1773754232375,-2351.0,0.00014968,2]
[408495587,1773754232385,-300.0,0.00015,2]
[408495588,1773754232394,-3228.0371,0.00015235,2]
[408495589,1773754232403,-6759.8903,0.00015235,2]
[408495590,1773754232413,-2243.2828,0.00015235,2]
[408495591,1773754232422,-1328.27659266,0.00015326,2]
[408495592,1773754232431,-500.0,0.00015326,2]
[408495593,1773754232440,-500.0,0.00015326,2]
[408495594,1773754232449,-282.48816514,0.00015326,2]
[408495595,1773754232458,-250.0,0.00015326,2]
[408495596,1773754232469,-273.91485162,0.00015326,2]
[408495597,1773754232479,-122794.49,0.00015335,2]
[408495598,1773754232488,-4000.0,0.00015507,2]
[408495599,1773754232498,-1852.42,0.00015769,2]
[408495600,1773754232507,-2191.58198201,0.00015824,2]
[408495601,1773754232517,-4000.0,0.00015895,2]
[408495602,1773754232526,-500.0,0.00016115,2]
[408495603,1773754232535,-4000.0,0.00016282,2]
[408495604,1773754232544,-823.0,0.00016347,2]
[408495605,1773754232553,-237.63,0.00016438,2]
[408495606,1773754232563,-3292.0,0.00016465,2]
[408495607,1773754232572,-547.47427654,0.00016635,2]
[408495608,1773754232581,-4000.0,0.0001667,2]
[408495609,1773754232590,-166.66,0.00016712,2]
[408495610,1773754232599,-2742.424,0.00016883,2]
[408495611,1773754232608,-170.951,0.00016883,2]
[408495612,1773754232617,-2500.0,0.00016914,2]
[408495613,1773754232626,-1027.91661422,0.00017015,2]
[408495614,1773754232636,-4593.37173115,0.00017015,2]
[408495615,1773754232645,-5000.0,0.00017015,2]
[408495616,1773754232654,-4000.0,0.00017058,2]
[408495617,1773754232668,-150.32010347,0.00017064,2]
[408495618,1773754232677,-151.0,0.00017112,2]
[408495619,1773754232686,-500.0,0.00017113,2]
[408495620,1773754232695,-500.0,0.00017113,2]
[408495621,1773754232705,-1027.91661417,0.00017113,2]
[408495622,1773754232715,-500.0,0.00017114,2]
[408495623,1773754232725,-500.0,0.00017114,2]
[408495624,1773754232737,-500.0,0.00017114,2]
[408495625,1773754232746,-500.0,0.00017114,2]
[408495626,1773754232756,-500.0,0.00017114,2]
[408495627,1773754232765,-500.0,0.00017114,2]
[408495628,1773754232775,-417.77310506,0.00017114,2]
[408495629,1773754232784,-500.0,0.00017114,2]
[408495630,1773754232793,-500.0,0.00017114,2]
[408495631,1773754232803,-500.0,0.00017114,2]
[408495632,1773754232812,-500.0,0.00017114,2]
[408495633,1773754232822,-500.0,0.00017114,2]
[408495634,1773754232831,-500.0,0.00017114,2]
[408495635,1773754232840,-500.0,0.00017114,2]
[408495636,1773754232849,-500.0,0.00017114,2]
[408495637,1773754232858,-251.54630715,0.00017114,2]
[408495638,1773754232868,-500.0,0.00017114,2]
[408495639,1773754232877,-500.0,0.00017114,2]
[408495640,1773754232886,-500.0,0.00017114,2]
[408495641,1773754232900,-500.0,0.00017114,2]
[408495642,1773754232910,-500.0,0.00017114,2]
[408495643,1773754232919,-500.0,0.00017114,2]
[408495644,1773754232928,-500.0,0.00017114,2]
[408495645,1773754232937,-500.0,0.00017114,2]
[408495646,1773754232949,-500.0,0.00017114,2]
[408495647,1773754232958,-500.0,0.00017114,2]
[408495648,1773754232968,-500.0,0.00017114,2]
[408495649,1773754232977,-500.0,0.00017114,2]
[408495650,1773754232987,-500.0,0.00017114,2]
[408495651,1773754232996,-500.0,0.00017114,2]
[408495652,1773754233005,-500.0,0.00017114,2]
[408495653,1773754233014,-500.0,0.00017114,2]
[408495654,1773754233026,-500.0,0.00017114,2]
[408495655,1773754233036,-500.0,0.00017114,2]
[408495656,1773754233045,-500.0,0.00017114,2]
[408495657,1773754233055,-500.0,0.00017114,2]
[408495658,1773754233064,-500.0,0.00017114,2]
[408495659,1773754233073,-300.0,0.00017114,2]
[408495660,1773754233083,-634.07224214,0.00017114,2]
[408495661,1773754233092,-500.0,0.00017114,2]
[408495662,1773754233101,-500.0,0.00017114,2]
[408495663,1773754233110,-583.44212456,0.00017114,2]
[408495664,1773754233120,-714.0,0.00017115,5]
[408495665,1773754233129,-567.0,0.00017115,5]
[408495666,1773754233138,-88709.44092431,0.00017115,2]
[408495667,1773754233150,-999.42248571,0.00017115,2]
[408495668,1773754233161,-972.11766286,0.00017115,2]
[408495669,1773754233172,-555.95984743,0.00017115,2]
[408495672,1773754237618,-237.63,0.00017098,2]
[408495673,1773754237630,-935.33774003,0.00017115,2]
[408495674,1773754237798,-873.39,0.00017115,2]
[408495675,1773754237810,-1286.88155625,0.00017115,2]
[408495676,1773754237822,-6250.77960331,0.00017115,2]
[408495677,1773754237841,-506.38888323,0.00017115,2]
[408495678,1773754237859,-82464.14453399,0.00017115,2]
[408495681,1773754240067,-111399.57877675,0.00017115,2]
[408495682,1773754240080,-1440.78823586,0.00017115,2]
[408495691,1773754242971,-620.0,0.00014737,2]
[408495692,1773754242981,-1928.00084781,0.00015407,2]
[408495693,1773754242992,-159.2,0.00017098,2]
[408495694,1773754243001,-2269.2234838,0.00017115,2]
[408495720,1773754245544,-1539.0,0.00017115,2]
[408495721,1773754245602,-1498.2,0.00017115,2]
[408495722,1773754245938,-415.08564385,0.00017015,2]
[408495723,1773754245948,-10090.13975615,0.00017115,2]
[408495726,1773754611354,10000.0,0.00032877,120]
[408495727,1773754612441,10000.0,0.00032877,120]
[408495728,1773754613934,10000.0,0.00032877,120]
[408495729,1773754615221,10000.0,0.00032877,120]
[408495730,1773754616291,10000.0,0.00032877,120]
[408495731,1773754617418,10000.0,0.00032877,120]
[408495732,1773754618391,10000.0,0.00032877,120]
[408495733,1773754619420,10000.0,0.00032877,120]
[408495734,1773754620556,10000.0,0.00032877,120]
[408495735,1773754621582,10000.0,0.00032877,120]
[408495736,1773754636177,158.85,0.00030411,120]
[408495737,1773755014161,10000.0,0.00032877,120]
[408495738,1773755015519,10000.0,0.00032877,120]
[408495739,1773755016537,10000.0,0.00032877,120]
[408495740,1773755017855,10000.0,0.00032877,120]
[408495741,1773755018960,10000.0,0.00032877,120]
[408495742,1773755019922,10000.0,0.00032877,120]
[408495743,1773755020886,10000.0,0.00032877,120]
[408495744,1773755021891,10000.0,0.00032877,120]
[408495745,1773755022960,10000.0,0.00032877,120]
[408495746,1773755024026,10000.0,0.00032877,120]
[408495747,1773755186225,2000.0,0.00032877,120]
[408495748,1773755257863,334459.03777583,0.00032,120]
[408495749,1773755263081,2000.0,0.00032877,120]
[408495760,1773755431682,-308.29206342,0.00014153,2]
[408495761,1773755431693,-2176.31617658,0.00014153,2]
[408495762,1773755431703,-159.88382342,0.00014153,2]
[408495763,1773755431715,-340.11617658,0.00014153,2]
[408495764,1773755431724,-267.0,0.00014153,2]
[408495765,1773755431734,-500.0,0.000142,2]
[408495766,1773755431748,-196.03205317,0.00014224,2]
[408495767,1773755431757,-2202.6393544,0.00014231,2]
[408495768,1773755431768,-1555.25933657,0.00014231,2]
[408495769,1773755431779,-419.3,0.00014231,2]
[408495770,1773755431799,-260.00955718,0.00014231,2]
[408495771,1773755431810,-380.0,0.00014231,2]
[408495772,1773755431821,-182.79175185,0.00014231,2]
[408495773,1773755431830,-1197.30262894,0.00014237,2]
[408495774,1773755431842,-2.69737106,0.00014237,2]
[408495775,1773755431852,-600.0,0.00014238,2]
[408495776,1773755431861,-200.65599408,0.00014324,2]
[408495777,1773755431871,-300.0,0.00014324,2]
[408495778,1773755431881,-247.79255925,0.00014324,2]
[408495779,1773755431892,-52.20744075,0.00014324,2]
[408495780,1773755431902,-600.0,0.00014325,2]
[408495781,1773755431912,-600.0,0.00014325,2]
[408495782,1773755431922,-418.65500964,0.00014325,2]
[408495783,1773755431934,-181.34499036,0.00014325,2]
[408495784,1773755431944,-908.16868288,0.00014365,2]
[408495785,1773755431956,-21.20732668,0.00014365,2]
[408495786,1773755431966,-300.0,0.00014424,2]
[408495787,1773755431975,-567.42865356,0.00014424,2]
[408495788,1773755432000,-488.71511094,0.00014424,2]
[408495789,1773755432009,-243.78488906,0.00014442,2]
[408495794,1773755437789,-6.21511094,0.00014442,2]
[408495795,1773755437799,-300.0,0.00014465,2]
[408495796,1773755437809,-300.0,0.00014465,2]
[408495797,1773755437820,-300.0,0.00014465,2]
[408495798,1773755437830,-300.0,0.00014537,2]
[408495799,1773755437840,-196.03205317,0.00014592,2]
[408495800,1773755437850,-163.1,0.00014687,2]
[408495801,1773755437860,-2000.0,0.00014722,2]
[408495802,1773755437869,-500.0,0.00014753,2]
[408495803,1773755437880,-30320.53,0.00014825,2]
[408495804,1773755437889,-200.0,0.00014834,2]
[408495805,1773755437899,-150.0,0.00014948,2]
[408495806,1773755437908,-6931.99,0.00014949,2]
[408495807,1773755437918,-196.03205317,0.00014959,2]
[408495808,1773755437927,-250.0,0.00015,2]
[408495809,1773755437936,-500.0,0.0001505,2]
[408495810,1773755437946,-1344.0,0.00015059,2]
[408495811,1773755437956,-1044.0,0.00015059,2]
[408495812,1773755437965,-620.0,0.00015059,2]
[408495813,1773755437975,-3511.0,0.00015059,2]
[408495814,1773755437984,-1260.0,0.00015059,2]
[408495815,1773755437994,-1214.0,0.00015059,2]
[408495816,1773755438003,-923.0,0.00015059,2]
[408495817,1773755438013,-3756.0,0.00015059,2]
[408495818,1773755438022,-2465.0,0.00015059,2]
[408495819,1773755438032,-154.01,0.00015102,2]
[408495820,1773755438041,-150.99,0.0001531,2]
[408495821,1773755438051,-1465.58939888,0.00015449,2]
[408495822,1773755438060,-195.0,0.00015568,2]
[408495823,1773755438069,-500.0,0.00015568,2]
[408495825,1773755438079,-1619.36,0.00015645,2]
[408495826,1773755438088,-195.0,0.00015646,2]
[408495828,1773755438098,-600.0,0.00015646,2]
[408495830,1773755438107,-500.0,0.00015646,2]
[408495831,1773755438116,-5000.0,0.00015646,2]
[408495832,1773755438126,-300.0,0.00015646,2]
[408495833,1773755438135,-1680.0,0.00015661,2]
[408495835,1773755438144,-420.0,0.00015688,2]
[408495837,1773755438153,-154.01,0.00015725,2]
[408495839,1773755438162,-250.0,0.00015756,2]
[408495841,1773755438172,-250.0,0.00015847,2]
[408495844,1773755438181,-500.0,0.00015847,2]
[408495845,1773755438191,-300.0,0.00015847,2]
[408495847,1773755438200,-1015.14138384,0.00015847,2]
[408495850,1773755438217,-3984.85861616,0.00015847,2]
[408495851,1773755438227,-150.34579661,0.00015946,2]
[408495852,1773755438239,-255.0,0.00016069,2]
[408495853,1773755438249,-3240.0,0.00016237,2]
[408495854,1773755438259,-370.01231718,0.00016244,2]
[408495855,1773755438268,-173.30925668,0.00016244,2]
[408495856,1773755438279,-154.01,0.00016349,2]
[408495857,1773755438288,-167.13,0.00016438,2]
[408495858,1773755438297,-2000.0,0.00016562,2]
[408495859,1773755438307,-180.0,0.0001672,2]
[408495860,1773755438316,-150.32010347,0.00016915,2]
[408495861,1773755438327,-3625.81222593,0.00016915,2]
[408495862,1773755438336,-822.33329139,0.00016915,2]
[408495863,1773755438346,-68.17848743,0.00016915,2]
[408495864,1773755438368,-281.18302418,0.00016915,2]
[408495865,1773755438378,-2190.42,0.00016915,2]
[408495866,1773755438398,-1288.02826434,0.00016915,2]
[408495867,1773755438408,-738.78893687,0.00016915,2]
[408495868,1773755438417,-5000.0,0.00016915,2]
[408495869,1773755438426,-2500.0,0.00016915,2]
[408495870,1773755438435,-170.951,0.00016941,2]
[408495871,1773755438445,-2193.939,0.00016941,2]
[408495872,1773755438453,-154.01,0.00016972,2]
[408495873,1773755438463,-300.0,0.00017,2]
[408495874,1773755438472,-292.44117354,0.00017014,2]
[408495875,1773755438482,-500.0,0.00017014,2]
[408495876,1773755438492,-339.0607008,0.00017014,2]
[408495877,1773755438501,-500.0,0.00017014,2]
[408495878,1773755438511,-443.85056949,0.00017014,2]
[408495879,1773755438520,-5643.77104143,0.00017015,2]
[408495883,1773755440282,-361.58271188,0.00017015,2]
[408495884,1773755440293,-13390.316375,0.00017015,2]
[408495885,1773755440342,-7379.0,0.00017015,2]
[408495886,1773755440353,-3956.58458564,0.00017015,2]
[408495887,1773755440565,-1211.0,0.00017015,2]
[408495899,1773755445405,-658.05674403,0.00015059,2]
[408495900,1773755445520,-5345.94325597,0.00015059,2]
[408495902,1773755445530,-5547.93765456,0.00017015,2]
[408495908,1773755445700,-699.27,0.00017015,2]
[408495909,1773755445758,-21777.121834,0.00017015,2]
[408495910,1773755445770,-4920.68387575,0.00017015,2]
[408495911,1773755446035,-511.87107698,0.00017015,2]
[408495912,1773755446099,-5179.70175118,0.00017015,2]
[408495913,1773755446110,-503.84189567,0.00017015,2]
[408495914,1773755446121,-630.56356531,0.00017015,2]
[408495925,1773756040358,157.85,6.859e-05,2]
[408495926,1773756040590,157.85,7.43e-05,2]
[408495927,1773756040806,157.85,8.002e-05,2]
[408495928,1773756041067,157.85,8.573e-05,2]
[408495929,1773756041351,157.85,9.145e-05,2]
[408495999,1773756631837,-157.85,9.716e-05,2]
[408496000,1773756631847,-132.03510599,9.859e-05,2]
[408496005,1773756632003,-117.96489401,9.859e-05,2]
[408496006,1773756632012,-1220.22989071,0.0001025,2]
[408496007,1773756632022,-157.85,0.00010288,2]
[408496008,1773756632031,-250.0,0.00010688,2]
[408496009,1773756632176,-250.0,0.00010688,2]
[408496010,1773756632185,-193.0,0.00010688,2]
[408496011,1773756632194,-157.85,0.0001086,2]
[408496012,1773756632204,-157.85,0.00011431,2]
[408496013,1773756632213,-3435.47,0.00011507,2]
[408496014,1773756632222,-1200.0,0.00011982,2]
[408496015,1773756632232,-2400.20134853,0.00011983,2]
[408496016,1773756632241,-157.85,0.00012003,2]
[408496017,1773756632251,-157.85,0.00012574,2]
[408496018,1773756632260,-380.0,0.00012932,2]
[408496019,1773756632270,-13209.22,0.00013094,2]
[408496020,1773756632279,-157.85,0.00013146,2]
[408496021,1773756632288,-1680.0,0.0001318,2]
[408496022,1773756632297,-4946.7,0.00013232,2]
[408496023,1773756632307,-1000.0,0.00013233,2]
[408496024,1773756632316,-13114.71,0.00013234,2]
[408496025,1773756632325,-174.65830177,0.00013245,2]
[408496026,1773756632334,-226771.34365426,0.00013255,2]
[408496027,1773756632346,-19884.35968387,0.00013255,2]
[408496028,1773756632357,-387.39724327,0.00013255,2]
[408496035,1773756637953,-500.0,0.00013255,2]
[408496036,1773756637964,-520.1239703,0.00013255,2]
[408496037,1773756637976,-478.56970088,0.00013255,2]
[408496038,1773756637987,-500.0,0.00013255,2]
[408496039,1773756638011,-36975.03651748,0.00013255,2]
[408496040,1773756638073,-1576.90833305,0.00013255,2]
[408496041,1773756638132,-22343.450597,0.00013255,2]
[408496045,1773756640409,-590.0917593,0.00013255,2]
[408496046,1773756640636,-713.87306896,0.00013255,2]
[408496047,1773756640647,-342.26322073,0.00013255,2]
[408496048,1773756640659,-630.65132795,0.00013255,2]
[408496049,1773756640668,-797.33084783,0.00013255,2]
[408496062,1773756643002,-576.92,0.00013255,2]
[408496063,1773756643223,-13384.86122401,0.00013255,2]
[408496064,1773756643234,-681.58,0.00013255,2]
[408496074,1773756645823,-63515.6996924,0.00013255,2]
[408496075,1773756646107,-1249.47073532,0.00013255,2]
[408496076,1773756646118,-3679.7,0.00013255,2]
[408496077,1773756646172,-2526.49701731,0.00013255,2]
[408496079,1773756646234,-3764.13196202,0.00013255,2]
[408496156,1773756812770,519.26,0.00032877,120]
[408496158,1773756878069,4000.21293422,0.00032876,120]
[408496159,1773756923826,66043.87620016,0.0003285,120]
[408496160,1773757030838,500.0,0.0003287,120]
[408496161,1773757204665,200.0,0.00012644,2]
[408496162,1773757236090,-54.0,0.00012644,2]
[408496163,1773757338489,450.0,0.00032876,120]
[408496165,1773757615308,2000.0,0.00032877,120]
[408496166,1773757626259,162.99,0.000328,120]
[408496168,1773757669684,630.27333606,0.0003287,120]
[408496170,1773757720887,158.85,0.00030411,120]
[408496188,1773757832031,-1500.36,0.00012556,2]
[408496189,1773757832044,-1974.6,0.00012556,2]
[408496190,1773757832053,-250.0,0.000126,2]
[408496191,1773757832063,-200.0,0.00012644,2]
[408496192,1773757832072,-131.02431623,0.000127,4]
[408496193,1773757832101,-168.97568377,0.000127,4]
[408496194,1773757832111,-600.0,0.000128,4]
[408496195,1773757832121,-900.0,0.000129,4]
[408496196,1773757832131,-334.64189725,0.00012944,2]
[408496197,1773757832141,-629.34622078,0.00012952,2]
[408496198,1773757832175,-1280.9704662,0.00012952,2]
[408496199,1773757832185,-300.0,0.00012952,2]
[408496200,1773757832195,-434.83440799,0.00012952,2]
[408496201,1773757832206,-765.16559201,0.00012952,2]
[408496202,1773757832216,-40.83440799,0.00012952,2]
[408496203,1773757832227,-259.16559201,0.00012952,2]
[408496204,1773757832238,-150.0,0.00012953,2]
[408496205,1773757832247,-760.30311539,0.00012953,2]
[408496206,1773757832256,-500.0,0.00012953,2]
[408496208,1773757832265,-500.0,0.00012953,2]
[408496210,1773757832275,-500.0,0.00012953,2]
[408496212,1773757832284,-500.0,0.00012953,2]
[408496214,1773757832294,-500.0,0.00012953,2]
[408496216,1773757832303,-500.0,0.00012953,2]
[408496217,1773757832313,-500.0,0.00012953,2]
[408496218,1773757832323,-500.0,0.00012953,2]
[408496219,1773757832333,-500.0,0.00012953,2]
[408496220,1773757832342,-500.0,0.00012953,2]
[408496221,1773757832352,-500.0,0.00012953,2]
[408496222,1773757832361,-440.62510918,0.00012953,2]
[408496223,1773757832371,-500.0,0.00012953,2]
[408496224,1773757832381,-500.0,0.00012953,2]
[408496225,1773757832390,-500.0,0.00012953,2]
[408496226,1773757832400,-500.0,0.00012953,2]
[408496227,1773757832410,-500.0,0.00012953,2]
[408496228,1773757832419,-500.0,0.00012953,2]
[408496229,1773757832429,-500.0,0.00012953,2]
[408496230,1773757832439,-500.0,0.00012953,2]
[408496231,1773757832448,-500.0,0.00012953,2]
[408496232,1773757832458,-500.0,0.00012953,2]
[408496233,1773757832467,-500.0,0.00012953,2]
[408496234,1773757832476,-234.20009244,0.00012953,2]
[408496235,1773757832486,-4540.055,0.00012954,2]
[408496236,1773757832495,-414637.42427543,0.00012954,2]
[408496237,1773757832507,-56707.69711765,0.00012954,2]
[408496238,1773757832518,-53931.63272877,0.00012954,2]
[408496239,1773757832529,-21469.1732869,0.00012954,2]
[408496240,1773757832540,-1095.56629781,0.00012954,2]
[408496241,1773757832551,-1046.42972454,0.00012954,2]
[408496242,1773757832567,-297.04785907,0.00012954,2]
[408496243,1773757832579,-729.0,0.00012954,2]
[408496277,1773757838163,-269.62911382,0.00012954,2]
[408496278,1773757838185,-20958.22132836,0.00012954,2]
[408496279,1773757838198,-1276.78651,0.00012954,2]
[408496280,1773757838209,-1170.75638054,0.00012954,2]
[408496281,1773757838220,-19275.54975037,0.00012954,2]
[408496282,1773757838273,-36487.0,0.00012954,2]
[408496283,1773757838332,-354.28804105,0.00012954,2]
[408496284,1773757838343,-47116.5695,0.00012954,2]
[408496300,1773757840451,-137586.81665908,0.00012954,2]
[408496301,1773757840462,-35479.12615948,0.00012954,2]
[408496302,1773757840602,-781.06101906,0.00012954,2]
[408496303,1773757840614,-497.12974831,0.00012954,2]
[408496304,1773757840663,-703.0,0.00012954,2]
[408496305,1773757840673,-291.27358967,0.00012954,2]
[408496310,1773757843264,-104.77437741,0.00012953,2]
[408496311,1773757843277,-395.22562259,0.00012953,2]
[408496312,1773757843286,-159.25991737,0.00012953,2]
[408496313,1773757843299,-340.74008263,0.00012953,2]
[408496314,1773757843310,-2002.94661593,0.00012954,2]
[408496315,1773757843323,-800.47612132,0.00012954,2]
[408496316,1773757843335,-2509.07303865,0.00012954,2]
[408496317,1773757843349,-959.15619224,0.00012954,2]
[408496318,1773757843362,-43184.89443682,0.00012954,2]
[408496319,1773757843390,-4131.7238808,0.00012954,2]
[408496320,1773757843404,-580.53513733,0.00012954,2]
[408496321,1773757843418,-3450.67186633,0.00012954,2]
[408496322,1773757843451,-18314.47348714,0.00012954,2]
[408496323,1773757843464,-743.33980056,0.00012954,2]
[408496324,1773757843477,-1030.1308482,0.00012954,2]
[408496325,1773757843488,-1521.12596407,0.00012954,2]
[408496326,1773757843499,-6679.17091087,0.00012954,2]
[408496327,1773757843530,-6600.82472289,0.00012954,2]
[408496411,1773757846054,-6471.28269683,0.00012954,2]
[408496412,1773757846066,-1476.73823347,0.00012954,2]
[408496413,1773757846335,-423.3396102,0.00012954,2]
[408496425,1773758238345,298.70785522,0.00012256,2]
[408496427,1773758815148,1000.0,0.0003287,120]
[408496428,1773758865463,4485.0,0.00032877,120]
[408496429,1773758927104,153.53,5.945e-05,2]
[408496430,1773758927342,153.53,6.341e-05,2]
[408496431,1773758927784,153.53,6.738e-05,2]
[408496432,1773758928036,153.53,7.134e-05,2]
[408496433,1773758928662,153.53,7.53e-05,2]
[408496434,1773758928713,153.53,7.927e-05,2]
[408496435,1773758928763,153.53,8.323e-05,2]
[408496436,1773758928956,153.53,8.719e-05,2]
[408496437,1773758929180,153.53,9.116e-05,2]
[408496448,1773759032189,-153.53,9.512e-05,2]
[408496449,1773759032201,-153.53,9.908e-05,2]
[408496450,1773759032210,-153.53,0.00010305,2]
[408496451,1773759032220,-153.53,0.00010701,2]
[408496452,1773759032230,-153.53,0.00011097,2]
[408496453,1773759032243,-153.53,0.00011494,2]
[408496454,1773759032252,-3223.51,0.00011507,2]
[408496455,1773759032262,-166.66,0.00011567,2]
[408496456,1773759032272,-1852.42,0.00011685,2]
[408496457,1773759032282,-166.66,0.0001181,2]
[408496458,1773759032293,-827.77,0.00011872,2]
[408496459,1773759032302,-150.0,0.0001189,2]
[408496460,1773759032313,-153.53,0.0001189,2]
[408496461,1773759032323,-1200.0,0.00011956,2]
[408496462,1773759032332,-2000.0,0.00011957,2]
[408496463,1773759032342,-1500.0,0.00012003,2]
[408496464,1773759032351,-312.3098896,0.00012007,2]
[408496465,1773759032360,-166.66,0.00012054,2]
[408496466,1773759032370,-395.08214478,0.00012256,2]
[408496467,1773759032379,-166.66,0.00012297,2]
[408496468,1773759032388,-208.17,0.00012343,2]
[408496469,1773759032398,-547.47427654,0.00012499,2]
[408496470,1773759032408,-300.0,0.00012499,2]
[408496471,1773759032417,-166.66,0.00012541,2]
[408496472,1773759032427,-200.0,0.000126,4]
[408496473,1773759032437,-3263.2310034,0.00012652,2]
[408496474,1773759032447,-1924.86834113,0.00012654,2]
[408496475,1773759032456,-665.26522601,0.00012654,2]
[408496477,1773759032466,-250.0,0.00012658,2]
[408496478,1773759032475,-166.67,0.00012682,2]
[408496479,1773759032486,-500.0,0.000127,4]
[408496480,1773759032496,-250.0,0.00012723,2]
[408496481,1773759032506,-250.0,0.00012723,2]
[408496482,1773759032515,-223.09459817,0.00012743,2]
[408496483,1773759032525,-1000.0,0.00012751,2]
[408496484,1773759032535,-150.0,0.00012751,2]
[408496485,1773759032545,-151.0,0.00012751,2]
[408496486,1773759032555,-500.0,0.00012752,2]
[408496487,1773759032716,-13224.90673941,0.00012753,2]
[408496488,1773759032730,-1228.70968045,0.00012753,2]
[408496489,1773759032741,-5563.98821051,0.00012753,2]
[408496490,1773759032765,-1800.0,0.00012753,2]
[408496491,1773759032777,-887.06669,0.00012753,2]
[408496492,1773759032793,-310842.60542431,0.00012753,2]
[408496493,1773759032839,-450.0,0.00012753,2]
[408496495,1773759038307,-11700.40405899,0.00012753,2]
[408496496,1773759038319,-4934.206548,0.00012753,2]
[408496497,1773759038366,-2090.50506772,0.00012753,2]
[408496498,1773759038377,-8771.8,0.00012753,2]
[408496499,1773759038435,-4810.94195086,0.00012753,2]
[408496500,1773759038551,-656.21319875,0.00012753,2]
[408496501,1773759038562,-5780.57166049,0.00012753,2]
[408496502,1773759038574,-16210.66963529,0.00012753,2]
[408496503,1773759038585,-639.31888652,0.00012753,2]
[408496504,1773759038604,-796.55986639,0.00012753,2]
[408496505,1773759038615,-4264.19002541,0.00012753,2]
[408496506,1773759038627,-22711.83799274,0.00012753,2]
[408496520,1773759040689,-475.80353924,0.00012753,2]
[408496521,1773759040748,-439.77719537,0.00012753,2]
[408496522,1773759040759,-6019.80175616,0.00012753,2]
[408496523,1773759040771,-989.87820974,0.00012753,2]
[408496524,1773759040924,-18356.25,0.00012753,2]
[408496525,1773759040978,-2339.99999999,0.00012753,2]
[408496526,1773759040990,-15512.28370302,0.00012753,2]
[408496527,1773759041001,-64343.74986839,0.00012753,2]
[408496528,1773759041012,-2315.09651318,0.00012753,2]
[408496529,1773759041023,-35893.8876836,0.00012753,2]
[408496541,1773759043595,-351.1234269,0.000126,2]
[408496542,1773759043605,-296403.00956315,0.00012753,2]
[408496543,1773759043627,-341.04,0.00012753,2]
[408496544,1773759043638,-500.0,0.00012753,2]
[408496545,1773759043681,-1342.2,0.00012753,2]
[408496558,1773759046201,-16253.0,0.00012753,2]
[408496559,1773759046483,-29657.14215396,0.00012753,2]
[408496560,1773759046495,-1738.90036247,0.00012753,2]
[408496561,1773759046507,-1159.86539298,0.00012753,2]
[408496562,1773759046543,-78458.88254192,0.00012753,2]
[408496563,1773759046554,-458796.34672992,0.00012753,2]
[408496564,1773759046565,-2356.53369478,0.00012753,2]
[408496568,1773759204081,151.0,0.00032877,120]
[408496569,1773759213573,151.0,0.00032877,120]
[408496570,1773759221060,151.0,0.00032877,120]
[408496571,1773759230380,151.0,0.00032877,120]
[408496572,1773759238609,151.0,0.00032877,120]
[408496573,1773759246591,151.0,0.00032877,120]
[408496574,1773759254109,151.0,0.00032877,120]
[408496575,1773759261032,151.0,0.00032877,120]
[408496576,1773759268177,151.0,0.00032877,120]
[408496577,1773759276202,151.0,0.00032877,120]
[408496578,1773759283879,151.0,0.00032877,120]
[408496579,1773759293910,151.0,0.00032877,120]
[408496580,1773759590619,803.43,0.00032877,120]
[408496591,1773759677085,176.66,9.242e-05,2]
[408496595,1773760043096,1520.3492525,0.00032876,120]
[408496614,1773760231398,-676.92004919,0.00010943,2]
[408496616,1773760231470,-343.32323318,0.00010943,2]